[Event "*** Titled Tuesday Blitz"]
[Site "Chess.com"]
[Date "2021.02.16"]
[Round "9"]
[White "HrvojeZagreb"]
[Black "SergeyShtyka"]
[Result "0-1"]
[WhiteElo "2260"]
[BlackElo "2470"]
[TimeControl "180+1"]
[EndTime "11:48:37 PST"]
[Termination "SergeyShtyka won on time"]

1. d4 {[%clk 0:03:00.9]} 1... c5 {[%clk 0:02:59.7]} 2. d5 {[%clk 0:03:00.6]}
2... e5 {[%clk 0:02:59.7]} 3. e4 {[%clk 0:02:59.4]} 3... d6 {[%clk 0:03:00.1]}
4. f4 {[%clk 0:02:58.1]} 4... exf4 {[%clk 0:02:59.1]} 5. Bxf4 {[%clk 0:02:59]}
5... Be7 {[%clk 0:02:59.3]} 6. Nc3 {[%clk 0:02:58.9]} 6... a6 {[%clk 0:02:58.5]}
7. a4 {[%clk 0:02:58.3]} 7... Bf6 {[%clk 0:02:58.2]} 8. Nf3 {[%clk 0:02:57.5]}
8... Qe7 {[%clk 0:02:58.3]} 9. Bd3 {[%clk 0:02:42.2]} 9... Nd7 {[%clk
0:02:58.2]} 10. O-O {[%clk 0:02:38.4]} 10... Ne5 {[%clk 0:02:57.8]} 11. Nxe5
{[%clk 0:02:36.9]} 11... Bxe5 {[%clk 0:02:57.9]} 12. Bxe5 {[%clk 0:02:36.3]}
12... Qxe5 {[%clk 0:02:57.1]} 13. Qf3 {[%clk 0:02:31]} 13... Nf6 {[%clk
0:02:56.4]} 14. Qf4 {[%clk 0:02:25.2]} 14... Qxf4 {[%clk 0:02:52.9]} 15. Rxf4
{[%clk 0:02:26.1]} 15... Nd7 {[%clk 0:02:51.1]} 16. a5 {[%clk 0:02:13.2]} 16...
Ne5 {[%clk 0:02:47.4]} 17. Na4 {[%clk 0:02:11.4]} 17... Bd7 {[%clk 0:02:45.7]}
18. Nb6 {[%clk 0:02:11.2]} 18... Rd8 {[%clk 0:02:45.2]} 19. Nc4 {[%clk
0:02:10.8]} 19... Nxc4 {[%clk 0:02:42.4]} 20. Bxc4 {[%clk 0:02:11.7]} 20... f6
{[%clk 0:02:37.1]} 21. Rb1 {[%clk 0:02:01.3]} 21... Bb5 {[%clk 0:02:35.3]} 22.
Bxb5+ {[%clk 0:01:55.2]} 22... axb5 {[%clk 0:02:35.1]} 23. b4 {[%clk 0:01:55.7]}
23... Rc8 {[%clk 0:02:29.8]} 24. c4 {[%clk 0:01:33.3]} 24... bxc4 {[%clk
0:02:16]} 25. b5 {[%clk 0:00:47.5]} 25... Ra8 {[%clk 0:01:57.9]} 26. Ra1 {[%clk
0:00:45.5]} 26... Kd7 {[%clk 0:01:38.7]} 27. Kf2 {[%clk 0:00:44.2]} 27... Ra7
{[%clk 0:01:36.3]} 28. Rf3 {[%clk 0:00:37.2]} 28... Rha8 {[%clk 0:01:34.9]} 29.
Rfa3 {[%clk 0:00:37]} 29... c3 {[%clk 0:01:29.1]} 30. b6 {[%clk 0:00:30.3]}
30... Ra6 {[%clk 0:01:25.4]} 31. Ke3 {[%clk 0:00:30.3]} 31... c4 {[%clk
0:01:02]} 32. Rxc3 {[%clk 0:00:14.9]} 32... Rxa5 {[%clk 0:00:59]} 33. Rxa5
{[%clk 0:00:15.8]} 33... Rxa5 {[%clk 0:00:59]} 34. Rxc4 {[%clk 0:00:16.3]} 34...
Ra3+ {[%clk 0:00:42.3]} 35. Kf4 {[%clk 0:00:15.6]} 35... Ra2 {[%clk 0:00:28.5]}
36. Rc7+ {[%clk 0:00:15.5]} 36... Kd8 {[%clk 0:00:28.7]} 37. Rxg7 {[%clk
0:00:16.4]} 37... h5 {[%clk 0:00:27.1]} 38. Kf5 {[%clk 0:00:15.3]} 38... Kc8
{[%clk 0:00:24.4]} 39. Kxf6 {[%clk 0:00:13.4]} 39... Re2 {[%clk 0:00:22.6]} 40.
Kf5 {[%clk 0:00:13.1]} 40... h4 {[%clk 0:00:20.6]} 41. Rc7+ {[%clk 0:00:12.1]}
41... Kb8 {[%clk 0:00:20.5]} 42. Rh7 {[%clk 0:00:07.1]} 42... Kc8 {[%clk
0:00:20.3]} 43. Rxh4 {[%clk 0:00:06.1]} 43... Rxg2 {[%clk 0:00:20.5]} 44. Ke6
{[%clk 0:00:06.4]} 44... Rg6+ {[%clk 0:00:19.9]} 45. Kf7 {[%clk 0:00:04.7]}
45... Rg2 {[%clk 0:00:17.4]} 46. Kf6 {[%clk 0:00:03.4]} 46... Rg8 {[%clk
0:00:14.2]} 0-1

[Event "*** Titled Tuesday Blitz"]
[Site "Chess.com"]
[Date "2021.02.16"]
[Round "9"]
[White "Ladislav1969"]
[Black "Alex-11211"]
[Result "1-0"]
[WhiteElo "2331"]
[BlackElo "2384"]
[TimeControl "180+1"]
[EndTime "11:48:38 PST"]
[Termination "Ladislav1969 won on time"]

1. e4 {[%clk 0:03:00.9]} 1... e5 {[%clk 0:02:57.4]} 2. Bc4 {[%clk 0:03:00.9]}
2... Nc6 {[%clk 0:02:56]} 3. d3 {[%clk 0:03:01.5]} 3... Nf6 {[%clk 0:02:55]} 4.
Nf3 {[%clk 0:03:02.1]} 4... Be7 {[%clk 0:02:51]} 5. c3 {[%clk 0:03:02.1]} 5...
O-O {[%clk 0:02:50.1]} 6. Bb3 {[%clk 0:03:02.3]} 6... d5 {[%clk 0:02:49.9]} 7.
Nbd2 {[%clk 0:02:54.6]} 7... Be6 {[%clk 0:02:26.5]} 8. O-O {[%clk 0:02:51.5]}
8... Qd7 {[%clk 0:02:17.3]} 9. Ng5 {[%clk 0:02:39]} 9... Bg4 {[%clk 0:02:16.9]}
10. f3 {[%clk 0:02:38.7]} 10... Bh5 {[%clk 0:02:16.1]} 11. Qe2 {[%clk 0:02:31]}
11... Rad8 {[%clk 0:02:07.6]} 12. Nh3 {[%clk 0:02:10.6]} 12... dxe4 {[%clk
0:01:35]} 13. dxe4 {[%clk 0:02:10.1]} 13... Qd3 {[%clk 0:01:35.3]} 14. Qxd3
{[%clk 0:02:07.2]} 14... Rxd3 {[%clk 0:01:36.2]} 15. Nf2 {[%clk 0:02:06.9]}
15... Bc5 {[%clk 0:01:29.3]} 16. Bc4 {[%clk 0:02:05.2]} 16... Rd7 {[%clk
0:01:21.6]} 17. Nb3 {[%clk 0:02:04.9]} 17... Bb6 {[%clk 0:01:14.2]} 18. a4
{[%clk 0:02:05]} 18... a6 {[%clk 0:01:11.6]} 19. Re1 {[%clk 0:01:48.5]} 19...
Ne8 {[%clk 0:00:52]} 20. Be3 {[%clk 0:01:44.1]} 20... Nd6 {[%clk 0:00:50.2]} 21.
Bd5 {[%clk 0:01:13.3]} 21... Ne7 {[%clk 0:00:48.3]} 22. Bxb6 {[%clk 0:01:06.1]}
22... Nxd5 {[%clk 0:00:46.7]} 23. exd5 {[%clk 0:01:03.7]} 23... cxb6 {[%clk
0:00:46.1]} 24. Rxe5 {[%clk 0:01:04.2]} 24... Bg6 {[%clk 0:00:46.2]} 25. Nd2
{[%clk 0:00:54.9]} 25... f6 {[%clk 0:00:33.8]} 26. Re2 {[%clk 0:00:52.6]} 26...
Rc8 {[%clk 0:00:32]} 27. Rc1 {[%clk 0:00:45.5]} 27... b5 {[%clk 0:00:21.9]} 28.
axb5 {[%clk 0:00:44.2]} 28... axb5 {[%clk 0:00:22.8]} 29. Nfe4 {[%clk
0:00:36.7]} 29... Nc4 {[%clk 0:00:20.6]} 30. Nxc4 {[%clk 0:00:32.2]} 30... bxc4
{[%clk 0:00:21.5]} 31. Rd1 {[%clk 0:00:30.7]} 31... b6 {[%clk 0:00:15.5]} 32.
Kf2 {[%clk 0:00:27.9]} 32... Bf7 {[%clk 0:00:13.5]} 33. Red2 {[%clk 0:00:27.7]}
33... Rcd8 {[%clk 0:00:12.5]} 34. d6 {[%clk 0:00:27.9]} 34... Bg6 {[%clk
0:00:11.2]} 35. Rd4 {[%clk 0:00:27.7]} 35... Bxe4 {[%clk 0:00:09.3]} 36. fxe4
{[%clk 0:00:27.3]} 36... Kf7 {[%clk 0:00:08.5]} 37. Ke3 {[%clk 0:00:26.9]} 37...
Ke6 {[%clk 0:00:08.4]} 38. Rxc4 {[%clk 0:00:26.6]} 38... Rxd6 {[%clk 0:00:08.5]}
39. Rxd6+ {[%clk 0:00:25.6]} 39... Rxd6 {[%clk 0:00:09.4]} 40. Rd4 {[%clk
0:00:25.3]} 40... Rc6 {[%clk 0:00:08.4]} 41. c4 {[%clk 0:00:24.1]} 41... Rc8
{[%clk 0:00:05.7]} 42. b4 {[%clk 0:00:23.3]} 42... g6 {[%clk 0:00:04.3]} 43. Kd3
{[%clk 0:00:22.2]} 43... Ke5 {[%clk 0:00:03.2]} 44. Rd5+ {[%clk 0:00:22.3]}
44... Kf4 {[%clk 0:00:03.5]} 45. Rd6 {[%clk 0:00:20.4]} 45... f5 {[%clk
0:00:01.7]} 46. exf5 {[%clk 0:00:20.4]} 46... gxf5 {[%clk 0:00:02.4]} 47. Rxb6
{[%clk 0:00:20.6]} 47... Rd8+ {[%clk 0:00:02.9]} 48. Kc3 {[%clk 0:00:20.8]}
48... Ke3 {[%clk 0:00:02.2]} 49. Rf6 {[%clk 0:00:20.1]} 49... f4 {[%clk
0:00:01.5]} 50. c5 {[%clk 0:00:20.6]} 1-0

[Event "*** Titled Tuesday Blitz"]
[Site "Chess.com"]
[Date "2021.02.16"]
[Round "9"]
[White "safikiet"]
[Black "Kapibara_Warri0r"]
[Result "1/2-1/2"]
[WhiteElo "2300"]
[BlackElo "2184"]
[TimeControl "180+1"]
[EndTime "11:48:44 PST"]
[Termination "Game drawn by repetition"]

1. e4 {[%clk 0:02:56.1]} 1... e5 {[%clk 0:02:59.7]} 2. Nf3 {[%clk 0:02:55.4]}
2... Nc6 {[%clk 0:03:00.3]} 3. Nc3 {[%clk 0:02:54.9]} 3... Nf6 {[%clk
0:03:00.2]} 4. Bb5 {[%clk 0:02:52.3]} 4... Nd4 {[%clk 0:02:58.6]} 5. Bc4 {[%clk
0:02:49.4]} 5... d6 {[%clk 0:02:55.2]} 6. h3 {[%clk 0:02:37.6]} 6... a5 {[%clk
0:02:44.4]} 7. d3 {[%clk 0:02:34.2]} 7... c6 {[%clk 0:02:40.4]} 8. a4 {[%clk
0:02:28.4]} 8... Be7 {[%clk 0:02:33.6]} 9. Nxd4 {[%clk 0:02:21.1]} 9... exd4
{[%clk 0:02:34.5]} 10. Ne2 {[%clk 0:02:20.6]} 10... c5 {[%clk 0:02:05.5]} 11.
O-O {[%clk 0:02:14.4]} 11... O-O {[%clk 0:02:05.4]} 12. f4 {[%clk 0:02:09.8]}
12... d5 {[%clk 0:02:03.8]} 13. exd5 {[%clk 0:02:02.7]} 13... Nxd5 {[%clk
0:02:03.6]} 14. Ng3 {[%clk 0:01:57.7]} 14... Bh4 {[%clk 0:01:54.6]} 15. Qf3
{[%clk 0:01:53.8]} 15... Nf6 {[%clk 0:01:24]} 16. f5 {[%clk 0:01:37.4]} 16...
Bxg3 {[%clk 0:01:14.3]} 17. Qxg3 {[%clk 0:01:35.3]} 17... Kh8 {[%clk 0:01:04.5]}
18. Bg5 {[%clk 0:01:28.3]} 18... Qb6 {[%clk 0:00:57.3]} 19. Qh4 {[%clk
0:01:23.8]} 19... Bd7 {[%clk 0:00:25.2]} 20. b3 {[%clk 0:01:13.3]} 20... Rae8
{[%clk 0:00:19.7]} 21. Rae1 {[%clk 0:01:08.5]} 21... Rxe1 {[%clk 0:00:19.5]} 22.
Rxe1 {[%clk 0:01:08.1]} 22... Bxf5 {[%clk 0:00:19.8]} 23. Rf1 {[%clk 0:01:04.5]}
23... Bg6 {[%clk 0:00:11.6]} 24. Bxf6 {[%clk 0:00:51]} 24... gxf6 {[%clk
0:00:12.5]} 25. Rxf6 {[%clk 0:00:50.3]} 25... Qd8 {[%clk 0:00:12.9]} 26. Qf4
{[%clk 0:00:46.2]} 26... Qe7 {[%clk 0:00:12.8]} 27. Qf2 {[%clk 0:00:40]} 27...
Qe5 {[%clk 0:00:12.5]} 28. Rb6 {[%clk 0:00:36.6]} 28... f5 {[%clk 0:00:10.9]}
29. Rxb7 {[%clk 0:00:34.3]} 29... f4 {[%clk 0:00:11.5]} 30. Qf3 {[%clk
0:00:20.7]} 30... Bh5 {[%clk 0:00:11.2]} 31. Qd5 {[%clk 0:00:18.6]} 31... Qe1+
{[%clk 0:00:10.8]} 32. Kh2 {[%clk 0:00:18.1]} 32... Qg3+ {[%clk 0:00:07.8]} 33.
Kg1 {[%clk 0:00:17.2]} 33... f3 {[%clk 0:00:08]} 34. Rxh7+ {[%clk 0:00:05.6]}
34... Kxh7 {[%clk 0:00:05.9]} 35. Qxh5+ {[%clk 0:00:06.2]} 35... Kg7 {[%clk
0:00:05.6]} 36. Qg4+ {[%clk 0:00:05.2]} 36... Qxg4 {[%clk 0:00:05.6]} 37. hxg4
{[%clk 0:00:06.1]} 37... f2+ {[%clk 0:00:04.9]} 38. Kf1 {[%clk 0:00:06.1]} 38...
Kh6 {[%clk 0:00:05.6]} 39. Bd5 {[%clk 0:00:06.2]} 39... Kg5 {[%clk 0:00:06.1]}
40. Bf3 {[%clk 0:00:06.6]} 40... Kf4 {[%clk 0:00:05]} 41. Kxf2 {[%clk
0:00:07.5]} 41... Rh8 {[%clk 0:00:04.1]} 42. Ke1 {[%clk 0:00:06.6]} 42... Rh1+
{[%clk 0:00:03.5]} 43. Kd2 {[%clk 0:00:06.7]} 43... Rg1 {[%clk 0:00:03.3]} 44.
Ke2 {[%clk 0:00:06.5]} 44... Rc1 {[%clk 0:00:03.1]} 45. Kd2 {[%clk 0:00:06.9]}
45... Rg1 {[%clk 0:00:04]} 46. Ke2 {[%clk 0:00:07]} 46... Ra1 {[%clk 0:00:03.9]}
47. Kd2 {[%clk 0:00:07.1]} 47... Rg1 {[%clk 0:00:03.3]} 1/2-1/2

[Event "*** Titled Tuesday Blitz"]
[Site "Chess.com"]
[Date "2021.02.16"]
[Round "9"]
[White "Evachess2006"]
[Black "1g60-1"]
[Result "0-1"]
[WhiteElo "1603"]
[BlackElo "2112"]
[TimeControl "180+1"]
[EndTime "11:48:47 PST"]
[Termination "1g60-1 won on time"]

1. e4 {[%clk 0:02:44.4]} 1... g6 {[%clk 0:03:00.9]} 2. d4 {[%clk 0:02:39.7]}
2... Bg7 {[%clk 0:03:01.8]} 3. Nc3 {[%clk 0:02:36.5]} 3... d6 {[%clk 0:03:02.7]}
4. Nf3 {[%clk 0:02:35.6]} 4... Nf6 {[%clk 0:03:01.9]} 5. Be2 {[%clk 0:02:35.4]}
5... O-O {[%clk 0:02:52.5]} 6. O-O {[%clk 0:02:35.4]} 6... a6 {[%clk 0:02:46]}
7. Be3 {[%clk 0:02:33.6]} 7... b5 {[%clk 0:02:41.5]} 8. a3 {[%clk 0:02:27.1]}
8... Bb7 {[%clk 0:02:36.4]} 9. e5 {[%clk 0:02:19.3]} 9... Ne8 {[%clk 0:02:33.1]}
10. exd6 {[%clk 0:02:11.9]} 10... cxd6 {[%clk 0:02:30.9]} 11. Bd3 {[%clk
0:01:48.1]} 11... Nf6 {[%clk 0:02:17.9]} 12. Qe2 {[%clk 0:01:43.8]} 12... Nc6
{[%clk 0:02:11.2]} 13. Ne4 {[%clk 0:01:39.1]} 13... Nxe4 {[%clk 0:02:02.3]} 14.
Bxe4 {[%clk 0:01:36.9]} 14... e5 {[%clk 0:02:03.2]} 15. dxe5 {[%clk 0:01:31.7]}
15... dxe5 {[%clk 0:02:04.1]} 16. Rad1 {[%clk 0:01:25.8]} 16... Qc7 {[%clk
0:01:55.9]} 17. c4 {[%clk 0:01:18.1]} 17... bxc4 {[%clk 0:01:47.6]} 18. Qxc4
{[%clk 0:01:09.5]} 18... Kh8 {[%clk 0:01:46.6]} 19. Bd5 {[%clk 0:00:59.8]} 19...
f5 {[%clk 0:01:41.3]} 20. Rc1 {[%clk 0:00:53.4]} 20... Rac8 {[%clk 0:01:37]} 21.
Bc5 {[%clk 0:00:48.4]} 21... Rfe8 {[%clk 0:01:30.9]} 22. Bxc6 {[%clk 0:00:41.3]}
22... Qxc6 {[%clk 0:01:30.1]} 23. b3 {[%clk 0:00:38.2]} 23... f4 {[%clk
0:01:25.8]} 24. Bb4 {[%clk 0:00:33.7]} 24... e4 {[%clk 0:00:57.8]} 25. Qxc6
{[%clk 0:00:32.3]} 25... Bxc6 {[%clk 0:00:58.6]} 26. Nd2 {[%clk 0:00:29.7]}
26... e3 {[%clk 0:00:58.3]} 27. fxe3 {[%clk 0:00:29.3]} 27... fxe3 {[%clk
0:00:59.2]} 28. Nc4 {[%clk 0:00:29.6]} 28... Bd4 {[%clk 0:00:49.3]} 29. Rfe1
{[%clk 0:00:30.5]} 29... Rf8 {[%clk 0:00:47.6]} 30. Re2 {[%clk 0:00:28.4]} 30...
Bd7 {[%clk 0:00:43]} 31. Rd1 {[%clk 0:00:27.8]} 31... Bg4 {[%clk 0:00:35.2]} 32.
Rxd4 {[%clk 0:00:23.7]} 32... Bxe2 {[%clk 0:00:34.8]} 33. g3 {[%clk 0:00:23.7]}
33... Bxc4 {[%clk 0:00:28.3]} 34. bxc4 {[%clk 0:00:23.4]} 34... e2 {[%clk
0:00:18.5]} 35. Re4 {[%clk 0:00:17.2]} 35... Rce8 {[%clk 0:00:17.6]} 36. Bc3+
{[%clk 0:00:16]} 36... Kg8 {[%clk 0:00:13.1]} 37. Rxe8 {[%clk 0:00:16.9]} 37...
Rxe8 {[%clk 0:00:14]} 38. Kf2 {[%clk 0:00:16]} 38... Kf7 {[%clk 0:00:14.9]} 39.
Ke1 {[%clk 0:00:15.9]} 39... g5 {[%clk 0:00:15.2]} 40. a4 {[%clk 0:00:16]} 40...
Kg6 {[%clk 0:00:16.1]} 41. Bd2 {[%clk 0:00:15.9]} 41... Kf5 {[%clk 0:00:16.1]}
42. a5 {[%clk 0:00:15.7]} 42... Ke4 {[%clk 0:00:16.1]} 43. Kf2 {[%clk
0:00:15.5]} 43... Kd3 {[%clk 0:00:16.4]} 44. Ke1 {[%clk 0:00:15]} 44... Kxc4
{[%clk 0:00:16.5]} 45. Bxg5 {[%clk 0:00:15.4]} 45... Kb5 {[%clk 0:00:17.4]} 46.
Bd2 {[%clk 0:00:15.1]} 46... Re6 {[%clk 0:00:16.8]} 47. g4 {[%clk 0:00:14.2]}
47... Kc4 {[%clk 0:00:17.7]} 48. h3 {[%clk 0:00:13.2]} 48... Kd3 {[%clk
0:00:18.6]} 49. Bb4 {[%clk 0:00:12.9]} 49... Rc6 {[%clk 0:00:18.4]} 50. Bd2
{[%clk 0:00:12.2]} 50... Rc8 {[%clk 0:00:17.6]} 51. Bg5 {[%clk 0:00:03.9]} 51...
Rf8 {[%clk 0:00:17.1]} 0-1

[Event "*** Titled Tuesday Blitz"]
[Site "Chess.com"]
[Date "2021.02.16"]
[Round "9"]
[White "PowerThinking2650"]
[Black "Artem_Sadovsky"]
[Result "1-0"]
[WhiteElo "2445"]
[BlackElo "2565"]
[TimeControl "180+1"]
[EndTime "11:48:55 PST"]
[Termination "PowerThinking2650 won by resignation"]

1. e4 {[%clk 0:03:00.9]} 1... c6 {[%clk 0:02:55.9]} 2. d4 {[%clk 0:03:00]} 2...
d5 {[%clk 0:02:56.4]} 3. Nc3 {[%clk 0:03:00.6]} 3... dxe4 {[%clk 0:02:53.3]} 4.
Nxe4 {[%clk 0:03:01.5]} 4... Nd7 {[%clk 0:02:52.8]} 5. Ng5 {[%clk 0:03:00.6]}
5... Ngf6 {[%clk 0:02:46.7]} 6. Bd3 {[%clk 0:02:59.3]} 6... e6 {[%clk
0:02:35.9]} 7. N1f3 {[%clk 0:02:59]} 7... Bd6 {[%clk 0:02:35.6]} 8. Qe2 {[%clk
0:02:58.9]} 8... Qe7 {[%clk 0:02:23.7]} 9. Bd2 {[%clk 0:02:48.4]} 9... h6 {[%clk
0:02:18.5]} 10. Ne4 {[%clk 0:02:47.6]} 10... Nxe4 {[%clk 0:02:13.5]} 11. Qxe4
{[%clk 0:02:48.5]} 11... Nf6 {[%clk 0:02:09.4]} 12. Qe2 {[%clk 0:02:47.8]} 12...
Bd7 {[%clk 0:01:45.8]} 13. O-O-O {[%clk 0:02:41.4]} 13... O-O-O {[%clk
0:01:43.2]} 14. Ne5 {[%clk 0:02:36.3]} 14... Kb8 {[%clk 0:01:40.5]} 15. Rhe1
{[%clk 0:02:04.2]} 15... Ka8 {[%clk 0:01:39.9]} 16. Nxd7 {[%clk 0:02:00.1]}
16... Qxd7 {[%clk 0:01:35.3]} 17. f4 {[%clk 0:01:35.5]} 17... Nd5 {[%clk
0:01:31.2]} 18. g3 {[%clk 0:01:34.9]} 18... Rhf8 {[%clk 0:01:22.2]} 19. Be4
{[%clk 0:01:33.4]} 19... Rfe8 {[%clk 0:01:19.8]} 20. c4 {[%clk 0:01:33.1]} 20...
Nf6 {[%clk 0:01:15.5]} 21. Bf3 {[%clk 0:01:31.8]} 21... Qc7 {[%clk 0:01:15.7]}
22. Bc3 {[%clk 0:01:23.3]} 22... c5 {[%clk 0:01:13.2]} 23. dxc5 {[%clk
0:01:21.3]} 23... Bxc5 {[%clk 0:01:08.9]} 24. Rxd8+ {[%clk 0:01:20.4]} 24...
Rxd8 {[%clk 0:01:08.8]} 25. Rd1 {[%clk 0:01:15.2]} 25... Rxd1+ {[%clk
0:01:01.1]} 26. Qxd1 {[%clk 0:01:15.4]} 26... Qd6 {[%clk 0:01:02]} 27. Qxd6
{[%clk 0:01:13.1]} 27... Bxd6 {[%clk 0:01:02.3]} 28. b4 {[%clk 0:01:09.8]} 28...
Kb8 {[%clk 0:01:02.5]} 29. Kc2 {[%clk 0:01:07.6]} 29... b6 {[%clk 0:01:02.6]}
30. Kb3 {[%clk 0:01:05]} 30... Kc7 {[%clk 0:01:03]} 31. Ka4 {[%clk 0:01:03.5]}
31... a6 {[%clk 0:01:00.4]} 32. Bd4 {[%clk 0:00:57.5]} 32... Be7 {[%clk
0:00:55.1]} 33. Be5+ {[%clk 0:00:55.8]} 33... Bd6 {[%clk 0:00:55.4]} 34. Bd4
{[%clk 0:00:54.6]} 34... Be7 {[%clk 0:00:55.7]} 35. a3 {[%clk 0:00:55.2]} 35...
g5 {[%clk 0:00:46.9]} 36. fxg5 {[%clk 0:00:52.4]} 36... hxg5 {[%clk 0:00:47.8]}
37. h4 {[%clk 0:00:51.7]} 37... g4 {[%clk 0:00:42.7]} 38. Be2 {[%clk 0:00:47.5]}
38... Nh5 {[%clk 0:00:37.8]} 39. Bxg4 {[%clk 0:00:41.7]} 39... Nxg3 {[%clk
0:00:38]} 40. h5 {[%clk 0:00:41.9]} 40... Ne4 {[%clk 0:00:31.3]} 41. h6 {[%clk
0:00:37.8]} 41... Bf6 {[%clk 0:00:30.3]} 42. Bxf6 {[%clk 0:00:26.8]} 42... Nxf6
{[%clk 0:00:31.2]} 43. Bh5 {[%clk 0:00:23]} 43... e5 {[%clk 0:00:27.8]} 44. Bxf7
{[%clk 0:00:21.6]} 44... e4 {[%clk 0:00:27.9]} 45. Bg6 {[%clk 0:00:21.6]} 45...
e3 {[%clk 0:00:27.9]} 46. Bd3 {[%clk 0:00:20.5]} 46... Kd6 {[%clk 0:00:28.2]}
47. Kb3 {[%clk 0:00:20.4]} 47... Ke5 {[%clk 0:00:28.2]} 48. Kc2 {[%clk
0:00:19.1]} 48... Kd4 {[%clk 0:00:23.3]} 49. h7 {[%clk 0:00:19]} 49... Nxh7
{[%clk 0:00:22.5]} 50. Bxh7 {[%clk 0:00:19.9]} 50... Kxc4 {[%clk 0:00:20.3]} 51.
Bd3+ {[%clk 0:00:19.2]} 51... Kd4 {[%clk 0:00:20.9]} 52. Bxa6 {[%clk 0:00:19.3]}
52... Kd5 {[%clk 0:00:20.4]} 53. Kd3 {[%clk 0:00:19.2]} 53... e2 {[%clk
0:00:21]} 54. Kxe2 {[%clk 0:00:19.3]} 54... Kd4 {[%clk 0:00:21.4]} 55. Kd2
{[%clk 0:00:19.8]} 55... Kd5 {[%clk 0:00:21.3]} 56. Kd3 {[%clk 0:00:20]} 56...
Kc6 {[%clk 0:00:22.2]} 57. Kc4 {[%clk 0:00:20.4]} 57... Kd6 {[%clk 0:00:22.9]}
58. Kb5 {[%clk 0:00:20.7]} 58... Kc7 {[%clk 0:00:23.8]} 59. a4 {[%clk
0:00:20.3]} 59... Kb8 {[%clk 0:00:24.7]} 60. Kxb6 {[%clk 0:00:20.9]} 60... Ka8
{[%clk 0:00:25.6]} 61. Bb5 {[%clk 0:00:20.7]} 61... Kb8 {[%clk 0:00:26.5]} 62.
Bd7 {[%clk 0:00:21.1]} 62... Ka8 {[%clk 0:00:27.4]} 63. b5 {[%clk 0:00:21.6]}
63... Kb8 {[%clk 0:00:28.3]} 64. a5 {[%clk 0:00:21.8]} 64... Ka8 {[%clk
0:00:29.2]} 65. Kc7 {[%clk 0:00:21.9]} 65... Ka7 {[%clk 0:00:29.5]} 66. b6+
{[%clk 0:00:22.5]} 66... Ka6 {[%clk 0:00:29.3]} 67. b7 {[%clk 0:00:23]} 67...
Kxa5 {[%clk 0:00:29.9]} 68. b8=Q {[%clk 0:00:22.2]} 68... Ka6 {[%clk 0:00:30.8]}
1-0

[Event "*** Titled Tuesday Blitz"]
[Site "Chess.com"]
[Date "2021.02.16"]
[Round "9"]
[White "Rodchenkov_Vitalij"]
[Black "Fortitudine"]
[Result "1-0"]
[WhiteElo "2544"]
[BlackElo "2327"]
[TimeControl "180+1"]
[EndTime "11:48:56 PST"]
[Termination "Rodchenkov_Vitalij won by resignation"]

1. e4 {[%clk 0:02:57.4]} 1... c5 {[%clk 0:02:59.6]} 2. Nf3 {[%clk 0:02:54.5]}
2... d6 {[%clk 0:02:59.9]} 3. d4 {[%clk 0:02:53.9]} 3... cxd4 {[%clk 0:03:00.8]}
4. Nxd4 {[%clk 0:02:54.1]} 4... Nf6 {[%clk 0:03:01.3]} 5. Nc3 {[%clk 0:02:53.7]}
5... Nc6 {[%clk 0:03:01.6]} 6. Be3 {[%clk 0:02:52.2]} 6... Ng4 {[%clk
0:03:00.9]} 7. Bg5 {[%clk 0:02:29.6]} 7... h6 {[%clk 0:03:00.4]} 8. Bh4 {[%clk
0:02:29.4]} 8... g5 {[%clk 0:03:00.9]} 9. Bg3 {[%clk 0:02:29.4]} 9... Bg7 {[%clk
0:03:01.4]} 10. Bb5 {[%clk 0:02:24.5]} 10... Bd7 {[%clk 0:03:00.5]} 11. Nxc6
{[%clk 0:02:17.8]} 11... bxc6 {[%clk 0:03:01.4]} 12. Be2 {[%clk 0:02:17.5]}
12... Ne5 {[%clk 0:02:59.5]} 13. h4 {[%clk 0:02:14.6]} 13... Rb8 {[%clk
0:02:50.8]} 14. Rb1 {[%clk 0:02:12.6]} 14... Qa5 {[%clk 0:02:43]} 15. hxg5
{[%clk 0:02:10.9]} 15... Rxb2 {[%clk 0:02:38.5]} 16. Qd2 {[%clk 0:01:54.1]}
16... Nf3+ {[%clk 0:02:19.5]} 17. gxf3 {[%clk 0:01:44.3]} 17... Bxc3 {[%clk
0:02:19.3]} 18. Rxb2 {[%clk 0:01:43.5]} 18... Bxd2+ {[%clk 0:02:18.9]} 19. Kf1
{[%clk 0:01:43.9]} 19... O-O {[%clk 0:02:08.6]} 20. gxh6 {[%clk 0:01:41]} 20...
Kh8 {[%clk 0:01:51.6]} 21. Rb7 {[%clk 0:01:40.1]} 21... Rd8 {[%clk 0:01:40.6]}
22. Kg2 {[%clk 0:01:37.3]} 22... Bc3 {[%clk 0:01:34]} 23. Rhb1 {[%clk
0:01:33.1]} 23... Qg5 {[%clk 0:01:26.8]} 24. f4 {[%clk 0:01:18.4]} 24... Qg6
{[%clk 0:01:19.6]} 25. Bd3 {[%clk 0:01:12]} 25... f5 {[%clk 0:01:10.5]} 26. Rxd7
{[%clk 0:01:00.6]} 26... Rxd7 {[%clk 0:01:06.4]} 27. Rb8+ {[%clk 0:01:01]} 27...
Kh7 {[%clk 0:01:04.6]} 28. exf5 {[%clk 0:00:59]} 28... Qf6 {[%clk 0:01:04.7]}
29. Bh4 {[%clk 0:00:47.5]} 29... Kxh6 {[%clk 0:00:21.7]} 30. Bxf6 {[%clk
0:00:40.2]} 30... Bxf6 {[%clk 0:00:22.6]} 31. Rc8 {[%clk 0:00:35]} 31... c5
{[%clk 0:00:20.3]} 32. Bc4 {[%clk 0:00:35.2]} 32... d5 {[%clk 0:00:20.7]} 33.
Bb5 {[%clk 0:00:34]} 33... Rb7 {[%clk 0:00:19.8]} 34. Rxc5 {[%clk 0:00:33.7]}
34... Rb6 {[%clk 0:00:18.2]} 35. Rxd5 {[%clk 0:00:33.8]} 35... a6 {[%clk
0:00:18.4]} 36. Bd3 {[%clk 0:00:33.5]} 36... Rb2 {[%clk 0:00:17.6]} 37. a4
{[%clk 0:00:33]} 37... Rb4 {[%clk 0:00:17.1]} 38. a5 {[%clk 0:00:32.5]} 38...
Rxf4 {[%clk 0:00:17]} 39. Bxa6 {[%clk 0:00:32]} 39... Bd4 {[%clk 0:00:13.2]} 40.
f3 {[%clk 0:00:27.9]} 40... Kg5 {[%clk 0:00:09.1]} 41. Kg3 {[%clk 0:00:19.1]}
41... Rxf5 {[%clk 0:00:07.3]} 42. Rxd4 {[%clk 0:00:18.9]} 42... Rxa5 {[%clk
0:00:06.1]} 43. Rg4+ {[%clk 0:00:19.4]} 43... Kf6 {[%clk 0:00:06.6]} 44. Bd3
{[%clk 0:00:20.3]} 44... e5 {[%clk 0:00:07]} 45. Rg6+ {[%clk 0:00:20.4]} 45...
Kf7 {[%clk 0:00:07.4]} 46. Rb6 {[%clk 0:00:20.5]} 46... Rc5 {[%clk 0:00:07]} 47.
Be4 {[%clk 0:00:20.8]} 47... Rc3 {[%clk 0:00:06.2]} 48. Kg4 {[%clk 0:00:20.9]}
48... Rc7 {[%clk 0:00:05.3]} 49. Kf5 {[%clk 0:00:21.1]} 49... Ke7 {[%clk
0:00:05.3]} 50. Re6+ {[%clk 0:00:20.5]} 50... Kd7 {[%clk 0:00:05.4]} 51. Rxe5
{[%clk 0:00:20.7]} 51... Kd6 {[%clk 0:00:05.1]} 52. Re6+ {[%clk 0:00:20.9]}
52... Kc5 {[%clk 0:00:06]} 53. Rc6+ {[%clk 0:00:20.4]} 53... Rxc6 {[%clk
0:00:06]} 54. Bxc6 {[%clk 0:00:21.3]} 54... Kxc6 {[%clk 0:00:06.7]} 55. Ke6
{[%clk 0:00:21.8]} 1-0